[Event "Titled Tuesday Blitz October 11 Late 2022"]
[White "Hoffmann, Asa"]
[Black "Salman, Pavel"]
[WhiteFideId "2001470"]
[BlackFideId "24153753"]
[WhiteElo "2117"]
[BlackElo "2187"]
[Result "0-1"]
[Round "08"]
[TimeControl "180+1"]
[Date "2022.10.12"]
[WhiteClock "0:00:09"]
[BlackClock "0:00:13"]

1. d4 {[%clk 0:02:56]}  Nf6 {[%clk 0:02:59]} 2. Bg5 {[%clk 0:02:53]}  Ne4 {[%clk 0:02:56]} 3. Bf4 {[%clk 0:02:53]}  d5 {[%clk 0:02:54]} 4. f3 {[%clk 0:02:53]}  Nf6 {[%clk 0:02:51]} 5. e4 {[%clk 0:02:51]}  dxe4 {[%clk 0:02:50]} 6. Nc3 {[%clk 0:02:50]}  c6 {[%clk 0:02:44]} 7. fxe4 {[%clk 0:02:47]}  Bg4 {[%clk 0:02:43]} 8. Qd3 {[%clk 0:02:41]}  e6 {[%clk 0:02:37]} 9. h3 {[%clk 0:02:40]}  Bh5 {[%clk 0:02:37]} 10. g4 {[%clk 0:02:39]}  Bg6 {[%clk 0:02:35]} 11. Bg2 {[%clk 0:02:39]}  Bb4 {[%clk 0:02:34]} 12. Ne2 {[%clk 0:02:38]}  Nbd7 {[%clk 0:02:23]} 13. O-O-O {[%clk 0:02:37]}  Qa5 {[%clk 0:02:22]} 14. a3 {[%clk 0:02:35]}  Be7 {[%clk 0:02:17]} 15. h4 {[%clk 0:02:34]}  Nxg4 {[%clk 0:02:04]} 16. Qg3 {[%clk 0:02:26]}  h5 {[%clk 0:01:59]} 17. Bf3 {[%clk 0:02:22]}  Ndf6 {[%clk 0:01:49]} 18. Bd2 {[%clk 0:02:16]}  Qa6 {[%clk 0:01:38]} 19. Nf4 {[%clk 0:02:13]}  Bh7 {[%clk 0:01:29]} 20. e5 {[%clk 0:02:12]}  Nd5 {[%clk 0:01:29]} 21. Nxh5 {[%clk 0:02:05]}  Bxa3 {[%clk 0:01:09]} 22. Bxd5 {[%clk 0:01:53]}  cxd5 {[%clk 0:00:58]} 23. Nxg7+ {[%clk 0:01:47]}  Kd7 {[%clk 0:00:56]} 24. Qxg4 {[%clk 0:01:46]}  Bb4 {[%clk 0:00:53]} 25. Nb1 {[%clk 0:01:40]}  Qc4 {[%clk 0:00:46]} 26. Bc3 {[%clk 0:01:28]}  Rhg8 {[%clk 0:00:32]} 27. Rhf1 {[%clk 0:01:16]}  Raf8 {[%clk 0:00:24]} 28. h5 {[%clk 0:01:14]}  b5 {[%clk 0:00:24]} 29. h6 {[%clk 0:01:13]}  Be7 {[%clk 0:00:22]} 30. Rf2 {[%clk 0:00:54]}  b4 {[%clk 0:00:21]} 31. Be1 {[%clk 0:00:53]}  b3 {[%clk 0:00:20]} 32. c3 {[%clk 0:00:42]}  a5 {[%clk 0:00:20]} 33. Qe2 {[%clk 0:00:36]}  Bg5+ {[%clk 0:00:19]} 34. Bd2 {[%clk 0:00:34]}  Bxd2+ {[%clk 0:00:16]} 35. Rxd2 {[%clk 0:00:34]}  Qa4 {[%clk 0:00:16]} 36. Qa6 {[%clk 0:00:31]}  Qa1 {[%clk 0:00:16]} 37. Qd6+ {[%clk 0:00:29]}  Kc8 {[%clk 0:00:16]} 38. Rc2 {[%clk 0:00:25]}  Bxc2 {[%clk 0:00:15]} 39. Rxc2 {[%clk 0:00:24]}  bxc2 {[%clk 0:00:15]} 40. Kxc2 {[%clk 0:00:24]}  Qa4+ {[%clk 0:00:15]} 41. b3 {[%clk 0:00:23]}  Qa2+ {[%clk 0:00:15]} 42. Kc1 {[%clk 0:00:22]}  Qxb3 {[%clk 0:00:16]} 43. Qc6+ {[%clk 0:00:21]}  Kb8 {[%clk 0:00:16]} 44. Qd6+ {[%clk 0:00:20]}  Ka7 {[%clk 0:00:16]} 45. Qc5+ {[%clk 0:00:19]}  Qb6 {[%clk 0:00:16]} 46. Qe7+ {[%clk 0:00:19]}  Qb7 {[%clk 0:00:15]} 47. Qc5+ {[%clk 0:00:18]}  Kb8 {[%clk 0:00:16]} 48. Qxa5 {[%clk 0:00:18]}  Rh8 {[%clk 0:00:15]} 49. Na3 {[%clk 0:00:17]}  Rxh6 {[%clk 0:00:14]} 50. Nb5 {[%clk 0:00:17]}  Rh1+ {[%clk 0:00:15]} 51. Kc2 {[%clk 0:00:17]}  Rh2+ {[%clk 0:00:15]} 52. Kb3 {[%clk 0:00:17]}  Rc8 {[%clk 0:00:12]} 53. Qb4 {[%clk 0:00:13]}  Rh1 {[%clk 0:00:12]} 54. Nd6 {[%clk 0:00:12]}  Rb1+ {[%clk 0:00:11]} 55. Kc2 {[%clk 0:00:12]}  Rxb4 {[%clk 0:00:11]} 56. Nxb7 {[%clk 0:00:11]}  Rxb7 {[%clk 0:00:12]} 57. Nh5 {[%clk 0:00:11]}  Rbc7 {[%clk 0:00:12]} 58. Nf6 {[%clk 0:00:10]}  Rxc3+ {[%clk 0:00:13]} 59. Kd2 {[%clk 0:00:10]}  R3c4 {[%clk 0:00:12]} 60. Ke3 {[%clk 0:00:10]}  Rc3+ {[%clk 0:00:12]} 61. Kf4 {[%clk 0:00:10]}  R8c4 {[%clk 0:00:13]} 62. Nd7+ {[%clk 0:00:09]}  Kc7 {[%clk 0:00:12]} 63. Nc5 {[%clk 0:00:09]}  Rxd4+ {[%clk 0:00:13]} 64. Kg5 {[%clk 0:00:09]}  Rxc5 {[%clk 0:00:13]} 65. Kf6 {[%clk 0:00:09]}  Rf4+ {[%clk 0:00:13]} 0-1


[Site "https://www.chess.com"]

[Event "Titled Tuesday Blitz October 11 Late 2022"]
[White "Ibarra Jerez, Jose Carlos"]
[Black "Andreikin, Dmitry"]
[WhiteFideId "2226332"]
[BlackFideId "4158814"]
[WhiteElo "2627"]
[BlackElo "2736"]
[Result "0-1"]
[Round "08"]
[TimeControl "180+1"]
[Date "2022.10.11"]
[WhiteClock "0:00:02"]
[BlackClock "0:00:34"]

1. e3 {[%clk 0:03:00]}  e6 {[%clk 0:03:00]} 2. Nf3 {[%clk 0:02:59]}  Nf6 {[%clk 0:03:00]} 3. d4 {[%clk 0:02:54]}  d5 {[%clk 0:03:00]} 4. Bd3 {[%clk 0:02:53]}  c5 {[%clk 0:02:59]} 5. c3 {[%clk 0:02:54]}  Nbd7 {[%clk 0:02:56]} 6. Nbd2 {[%clk 0:02:52]}  b6 {[%clk 0:02:53]} 7. Ne5 {[%clk 0:02:39]}  Bd6 {[%clk 0:02:49]} 8. f4 {[%clk 0:02:38]}  Bb7 {[%clk 0:02:48]} 9. Qf3 {[%clk 0:02:38]}  Qc7 {[%clk 0:02:46]} 10. O-O {[%clk 0:02:37]}  O-O {[%clk 0:02:43]} 11. g4 {[%clk 0:02:33]}  g6 {[%clk 0:02:31]} 12. g5 {[%clk 0:02:27]}  Nh5 {[%clk 0:02:31]} 13. Qh3 {[%clk 0:02:23]}  Ng7 {[%clk 0:02:16]} 14. Ndf3 {[%clk 0:01:56]}  a5 {[%clk 0:02:14]} 15. Nxd7 {[%clk 0:01:52]}  Qxd7 {[%clk 0:02:13]} 16. Ne5 {[%clk 0:01:53]}  Bxe5 {[%clk 0:02:12]} 17. fxe5 {[%clk 0:01:53]}  Ba6 {[%clk 0:02:11]} 18. Bxa6 {[%clk 0:01:45]}  Rxa6 {[%clk 0:02:12]} 19. a4 {[%clk 0:01:25]}  Nf5 {[%clk 0:02:12]} 20. Qg4 {[%clk 0:01:24]}  Rc8 {[%clk 0:01:56]} 21. Qe2 {[%clk 0:01:23]}  Raa8 {[%clk 0:01:53]} 22. Qb5 {[%clk 0:01:22]}  Qd8 {[%clk 0:01:47]} 23. Kh1 {[%clk 0:01:18]}  c4 {[%clk 0:01:40]} 24. Rg1 {[%clk 0:00:47]}  h6 {[%clk 0:01:32]} 25. e4 {[%clk 0:00:36]}  dxe4 {[%clk 0:01:31]} 26. gxh6 {[%clk 0:00:37]}  e3 {[%clk 0:01:29]} 27. b3 {[%clk 0:00:32]}  Rc5 {[%clk 0:01:00]} 28. dxc5 {[%clk 0:00:26]}  Qd5+ {[%clk 0:01:00]} 29. Rg2 {[%clk 0:00:26]}  Nh4 {[%clk 0:00:57]} 30. Ra2 {[%clk 0:00:25]}  Qd1+ {[%clk 0:00:57]} 31. Rg1 {[%clk 0:00:24]}  Qf3+ {[%clk 0:00:57]} 32. Rag2 {[%clk 0:00:23]}  Nxg2 {[%clk 0:00:52]} 33. Rxg2 {[%clk 0:00:22]}  Rd8 {[%clk 0:00:41]} 34. h7+ {[%clk 0:00:13]}  Kxh7 {[%clk 0:00:39]} 35. Bxe3 {[%clk 0:00:13]}  Qxe3 {[%clk 0:00:39]} 36. Rg3 {[%clk 0:00:03]}  Qe4+ {[%clk 0:00:33]} 37. Kg1 {[%clk 0:00:03]}  Rd1+ {[%clk 0:00:33]} 38. Kf2 {[%clk 0:00:04]}  Rd2+ {[%clk 0:00:34]} 39. Kf1 {[%clk 0:00:02]}  Qe2+ {[%clk 0:00:34]} 0-1


[Site "https://www.chess.com"]

[Event "Titled Tuesday Blitz October 11 Late 2022"]
[White "Iliaguev, Nisim"]
[Black "Indjic, Aleksandar"]
[WhiteFideId "2817276"]
[BlackFideId "911925"]
[WhiteElo "2264"]
[BlackElo "2592"]
[Result "1/2-1/2"]
[Round "08"]
[TimeControl "180+1"]
[Date "2022.10.11"]
[WhiteClock "0:00:09"]
[BlackClock "0:00:08"]

1. d4 {[%clk 0:03:00]}  Nf6 {[%clk 0:02:58]} 2. Nf3 {[%clk 0:03:00]}  e6 {[%clk 0:02:58]} 3. g3 {[%clk 0:03:00]}  c5 {[%clk 0:02:57]} 4. Bg2 {[%clk 0:03:01]}  cxd4 {[%clk 0:02:57]} 5. O-O {[%clk 0:03:01]}  d5 {[%clk 0:02:56]} 6. Nxd4 {[%clk 0:03:01]}  e5 {[%clk 0:02:56]} 7. Nb3 {[%clk 0:03:02]}  Nc6 {[%clk 0:02:55]} 8. c4 {[%clk 0:03:02]}  d4 {[%clk 0:02:55]} 9. e3 {[%clk 0:03:03]}  Be7 {[%clk 0:02:50]} 10. exd4 {[%clk 0:03:02]}  exd4 {[%clk 0:02:51]} 11. N1d2 {[%clk 0:02:58]}  Be6 {[%clk 0:02:48]} 12. Re1 {[%clk 0:02:54]}  O-O {[%clk 0:02:42]} 13. Nf3 {[%clk 0:02:52]}  d3 {[%clk 0:02:37]} 14. Nbd2 {[%clk 0:02:31]}  Bc5 {[%clk 0:02:35]} 15. Nb3 {[%clk 0:02:23]}  Bb4 {[%clk 0:02:32]} 16. Bd2 {[%clk 0:02:22]}  Bxc4 {[%clk 0:02:30]} 17. Rc1 {[%clk 0:02:19]}  Bd5 {[%clk 0:01:45]} 18. Nc5 {[%clk 0:02:06]}  Qb6 {[%clk 0:01:43]} 19. Nxd3 {[%clk 0:01:55]}  Bxd2 {[%clk 0:01:39]} 20. Qxd2 {[%clk 0:01:56]}  Rad8 {[%clk 0:01:27]} 21. Qe3 {[%clk 0:01:39]}  Bxa2 {[%clk 0:01:01]} 22. Qxb6 {[%clk 0:01:38]}  axb6 {[%clk 0:01:02]} 23. Nf4 {[%clk 0:01:28]}  Nd5 {[%clk 0:00:58]} 24. Ne5 {[%clk 0:01:00]}  Nxf4 {[%clk 0:00:51]} 25. gxf4 {[%clk 0:01:01]}  Bd5 {[%clk 0:00:24]} 26. Nxc6 {[%clk 0:00:39]}  bxc6 {[%clk 0:00:23]} 27. Bxd5 {[%clk 0:00:39]}  Rxd5 {[%clk 0:00:22]} 28. Rxc6 {[%clk 0:00:39]}  Rb5 {[%clk 0:00:22]} 29. Re2 {[%clk 0:00:37]}  g6 {[%clk 0:00:23]} 30. Kg2 {[%clk 0:00:37]}  Ra8 {[%clk 0:00:21]} 31. Kg3 {[%clk 0:00:20]}  Kg7 {[%clk 0:00:20]} 32. f3 {[%clk 0:00:19]}  Ra2 {[%clk 0:00:19]} 33. Rcc2 {[%clk 0:00:19]}  h5 {[%clk 0:00:18]} 34. h4 {[%clk 0:00:18]}  Ra4 {[%clk 0:00:18]} 35. Rc7 {[%clk 0:00:18]}  Rf5 {[%clk 0:00:16]} 36. Re4 {[%clk 0:00:17]}  Raa5 {[%clk 0:00:14]} 37. Rb4 {[%clk 0:00:14]}  Rab5 {[%clk 0:00:14]} 38. Rcc4 {[%clk 0:00:14]}  Rxb4 {[%clk 0:00:14]} 39. Rxb4 {[%clk 0:00:14]}  b5 {[%clk 0:00:15]} 40. Kf2 {[%clk 0:00:14]}  Rc5 {[%clk 0:00:14]} 41. Ke3 {[%clk 0:00:14]}  Kf6 {[%clk 0:00:14]} 42. Kd4 {[%clk 0:00:13]}  Rf5 {[%clk 0:00:14]} 43. Ke4 {[%clk 0:00:13]}  Ke6 {[%clk 0:00:14]} 44. Rd4 {[%clk 0:00:13]}  Rc5 {[%clk 0:00:14]} 45. Rd8 {[%clk 0:00:14]}  Rc4+ {[%clk 0:00:14]} 46. Ke3 {[%clk 0:00:14]}  Rb4 {[%clk 0:00:15]} 47. Rd2 {[%clk 0:00:12]}  Kf5 {[%clk 0:00:14]} 48. Rd5+ {[%clk 0:00:13]}  Ke6 {[%clk 0:00:14]} 49. Rd2 {[%clk 0:00:14]}  f6 {[%clk 0:00:14]} 50. Rc2 {[%clk 0:00:13]}  Rb3+ {[%clk 0:00:12]} 51. Ke4 {[%clk 0:00:14]}  f5+ {[%clk 0:00:13]} 52. Kd4 {[%clk 0:00:14]}  Rxf3 {[%clk 0:00:13]} 53. Rc6+ {[%clk 0:00:14]}  Kf7 {[%clk 0:00:13]} 54. Rc7+ {[%clk 0:00:13]}  Kf6 {[%clk 0:00:13]} 55. Rc6+ {[%clk 0:00:13]}  Kg7 {[%clk 0:00:14]} 56. Rc7+ {[%clk 0:00:13]}  Kh6 {[%clk 0:00:14]} 57. Ke5 {[%clk 0:00:13]}  Re3+ {[%clk 0:00:10]} 58. Kf6 {[%clk 0:00:14]}  Rd3 {[%clk 0:00:09]} 59. Rc8 {[%clk 0:00:14]}  Rd6+ {[%clk 0:00:09]} 60. Kf7 {[%clk 0:00:14]}  Rd7+ {[%clk 0:00:09]} 61. Kf6 {[%clk 0:00:15]}  Kh7 {[%clk 0:00:09]} 62. Rb8 {[%clk 0:00:14]}  Rd6+ {[%clk 0:00:09]} 63. Ke5 {[%clk 0:00:12]}  Rd2 {[%clk 0:00:08]} 64. Rxb5 {[%clk 0:00:12]}  Rh2 {[%clk 0:00:08]} 65. Kf6 {[%clk 0:00:12]}  Rxh4 {[%clk 0:00:07]} 66. Rb7+ {[%clk 0:00:12]}  Kh6 {[%clk 0:00:07]} 67. Rb8 {[%clk 0:00:13]}  Kh7 {[%clk 0:00:07]} 68. Rb7+ {[%clk 0:00:13]}  Kh6 {[%clk 0:00:08]} 69. Rb8 {[%clk 0:00:11]}  Kh7 {[%clk 0:00:08]} 70. Rb7+ {[%clk 0:00:09]} 1/2-1/2


[Site "https://www.chess.com"]

[Event "Titled Tuesday Blitz October 11 Late 2022"]
[White "Ismagilov, Damir"]
[Black "Taboas Rodriguez, Daniel"]
[WhiteFideId "34199982"]
[BlackFideId "2208466"]
[WhiteElo "2673"]
[BlackElo "2527"]
[Result "0-1"]
[Round "08"]
[TimeControl "180+1"]
[Date "2022.10.12"]
[WhiteClock "0:00:04"]
[BlackClock "0:00:13"]

1. e4 {[%clk 0:03:00]}  e5 {[%clk 0:02:58]} 2. Nf3 {[%clk 0:03:00]}  Nc6 {[%clk 0:02:58]} 3. Bb5 {[%clk 0:03:00]}  Nf6 {[%clk 0:02:57]} 4. d3 {[%clk 0:02:59]}  d6 {[%clk 0:02:56]} 5. c3 {[%clk 0:02:54]}  Bd7 {[%clk 0:02:55]} 6. O-O {[%clk 0:02:51]}  g6 {[%clk 0:02:55]} 7. Re1 {[%clk 0:02:44]}  Bg7 {[%clk 0:02:55]} 8. h3 {[%clk 0:02:40]}  O-O {[%clk 0:02:55]} 9. Nbd2 {[%clk 0:02:35]}  Nh5 {[%clk 0:02:54]} 10. Nf1 {[%clk 0:02:23]}  Qe8 {[%clk 0:02:50]} 11. d4 {[%clk 0:02:06]}  Nxd4 {[%clk 0:02:47]} 12. cxd4 {[%clk 0:02:07]}  Bxb5 {[%clk 0:02:47]} 13. dxe5 {[%clk 0:01:49]}  dxe5 {[%clk 0:02:46]} 14. Qc2 {[%clk 0:01:47]}  Bc6 {[%clk 0:02:42]} 15. Be3 {[%clk 0:01:43]}  Qe6 {[%clk 0:02:29]} 16. b4 {[%clk 0:01:25]}  Rfd8 {[%clk 0:02:28]} 17. a4 {[%clk 0:01:24]}  a6 {[%clk 0:02:28]} 18. Red1 {[%clk 0:01:20]}  Qe8 {[%clk 0:02:25]} 19. N1d2 {[%clk 0:01:14]}  Nf4 {[%clk 0:02:21]} 20. Nc4 {[%clk 0:01:06]}  Rxd1+ {[%clk 0:02:19]} 21. Qxd1 {[%clk 0:01:07]}  Rd8 {[%clk 0:02:18]} 22. Qc2 {[%clk 0:01:06]}  f5 {[%clk 0:02:03]} 23. Nfd2 {[%clk 0:00:54]}  Ne2+ {[%clk 0:01:49]} 24. Kh1 {[%clk 0:00:52]}  f4 {[%clk 0:01:49]} 25. Bc5 {[%clk 0:00:41]}  b6 {[%clk 0:01:48]} 26. Nxb6 {[%clk 0:00:38]}  cxb6 {[%clk 0:01:47]} 27. Bxb6 {[%clk 0:00:38]}  Nd4 {[%clk 0:01:44]} 28. Qc4+ {[%clk 0:00:36]}  Kh8 {[%clk 0:01:24]} 29. Bxd8 {[%clk 0:00:36]}  Qxd8 {[%clk 0:01:24]} 30. Qxa6 {[%clk 0:00:35]}  h5 {[%clk 0:01:14]} 31. Rc1 {[%clk 0:00:33]}  Qh4 {[%clk 0:01:07]} 32. Kg1 {[%clk 0:00:25]}  f3 {[%clk 0:00:48]} 33. Rxc6 {[%clk 0:00:24]}  Qg5 {[%clk 0:00:40]} 34. Rxg6 {[%clk 0:00:11]}  Qxd2 {[%clk 0:00:39]} 35. Qc8+ {[%clk 0:00:04]}  Kh7 {[%clk 0:00:38]} 36. Qe8 {[%clk 0:00:03]}  Ne2+ {[%clk 0:00:13]} 37. Kh2 {[%clk 0:00:03]}  Nf4 {[%clk 0:00:14]} 38. g3 {[%clk 0:00:04]}  Nxg6 {[%clk 0:00:13]} 0-1


[Site "https://www.chess.com"]

[Event "Titled Tuesday Blitz October 11 Late 2022"]
[White "Izuzquiza Gonzalez, Javier"]
[Black "Rodriguez Santiago, Jaime"]
[WhiteFideId "3101029"]
[BlackFideId "3100898"]
[WhiteElo "2034"]
[BlackElo "2025"]
[Result "0-1"]
[Round "08"]
[TimeControl "180+1"]
[Date "2022.10.12"]
[WhiteClock "0:00:44"]
[BlackClock "0:01:21"]

1. d4 {[%clk 0:03:00]}  g6 {[%clk 0:02:57]} 2. c4 {[%clk 0:03:00]}  Bg7 {[%clk 0:02:57]} 3. Nf3 {[%clk 0:03:01]}  c5 {[%clk 0:02:57]} 4. d5 {[%clk 0:03:00]}  d6 {[%clk 0:02:57]} 5. g3 {[%clk 0:03:00]}  e6 {[%clk 0:02:58]} 6. Bg2 {[%clk 0:03:01]}  Ne7 {[%clk 0:02:57]} 7. Nc3 {[%clk 0:03:00]}  O-O {[%clk 0:02:57]} 8. O-O {[%clk 0:03:00]}  a6 {[%clk 0:02:57]} 9. a4 {[%clk 0:03:00]}  exd5 {[%clk 0:02:57]} 10. cxd5 {[%clk 0:02:59]}  Bg4 {[%clk 0:02:54]} 11. Nd2 {[%clk 0:02:59]}  b6 {[%clk 0:02:30]} 12. Nc4 {[%clk 0:02:56]}  Bc8 {[%clk 0:02:27]} 13. Bf4 {[%clk 0:02:52]}  Nf5 {[%clk 0:02:23]} 14. e4 {[%clk 0:02:46]}  g5 {[%clk 0:02:21]} 15. exf5 {[%clk 0:02:24]}  gxf4 {[%clk 0:02:19]} 16. Qg4 {[%clk 0:02:24]}  Nd7 {[%clk 0:02:07]} 17. Nxd6 {[%clk 0:02:12]}  Ne5 {[%clk 0:02:02]} 18. Qh4 {[%clk 0:01:38]}  Qxd6 {[%clk 0:01:55]} 19. gxf4 {[%clk 0:01:33]}  Nd3 {[%clk 0:01:50]} 20. Ne4 {[%clk 0:01:30]}  Qxf4 {[%clk 0:01:50]} 21. Nf6+ {[%clk 0:01:21]}  Bxf6 {[%clk 0:01:46]} 22. Qxf6 {[%clk 0:01:22]}  Qxf5 {[%clk 0:01:46]} 23. Qc6 {[%clk 0:01:09]}  Bd7 {[%clk 0:01:42]} 24. Qd6 {[%clk 0:01:05]}  Nf4 {[%clk 0:01:41]} 25. Bf3 {[%clk 0:00:47]}  Nh3+ {[%clk 0:01:21]} 26. Kg2 {[%clk 0:00:44]}  Kh8 {[%clk 0:01:21]} 0-1


[Site "https://www.chess.com"]

[Event "Titled Tuesday Blitz October 11 Late 2022"]
[White "Jobava, Baadur"]
[Black "Nakamura, Hikaru"]
[WhiteFideId "13601520"]
[BlackFideId "2016192"]
[WhiteElo "2582"]
[BlackElo "2909"]
[Result "1/2-1/2"]
[Round "08"]
[TimeControl "180+1"]
[Date "2022.10.11"]
[WhiteClock "0:00:31"]
[BlackClock "0:00:14"]

1. b3 {[%clk 0:03:00]}  c5 {[%clk 0:02:57]} 2. Bb2 {[%clk 0:03:01]}  d6 {[%clk 0:02:57]} 3. e3 {[%clk 0:03:01]}  Nf6 {[%clk 0:02:55]} 4. Nf3 {[%clk 0:03:00]}  e5 {[%clk 0:02:54]} 5. Bb5+ {[%clk 0:02:58]}  Nbd7 {[%clk 0:02:44]} 6. d3 {[%clk 0:02:54]}  Qa5+ {[%clk 0:02:36]} 7. Nc3 {[%clk 0:02:53]}  a6 {[%clk 0:02:33]} 8. Bxd7+ {[%clk 0:02:53]}  Bxd7 {[%clk 0:02:34]} 9. O-O {[%clk 0:02:53]}  Rc8 {[%clk 0:02:34]} 10. a4 {[%clk 0:02:46]}  Be7 {[%clk 0:02:28]} 11. e4 {[%clk 0:02:46]}  Qc7 {[%clk 0:02:25]} 12. a5 {[%clk 0:02:46]}  O-O {[%clk 0:02:23]} 13. Nd2 {[%clk 0:02:46]}  Bc6 {[%clk 0:02:17]} 14. Nc4 {[%clk 0:02:46]}  Rcd8 {[%clk 0:02:17]} 15. Re1 {[%clk 0:02:45]}  Rfe8 {[%clk 0:02:17]} 16. h3 {[%clk 0:02:44]}  Bf8 {[%clk 0:02:15]} 17. Nb6 {[%clk 0:02:42]}  g6 {[%clk 0:02:13]} 18. Bc1 {[%clk 0:02:36]}  h6 {[%clk 0:02:11]} 19. Qf3 {[%clk 0:02:35]}  Qe7 {[%clk 0:02:11]} 20. g4 {[%clk 0:02:17]}  Nh7 {[%clk 0:01:49]} 21. Ncd5 {[%clk 0:02:15]}  Qh4 {[%clk 0:01:46]} 22. Kg2 {[%clk 0:02:13]}  Bg7 {[%clk 0:01:43]} 23. Qg3 {[%clk 0:02:05]}  Qxg3+ {[%clk 0:01:44]} 24. fxg3 {[%clk 0:02:05]}  f5 {[%clk 0:01:36]} 25. gxf5 {[%clk 0:02:01]}  gxf5 {[%clk 0:01:37]} 26. c4 {[%clk 0:01:51]}  fxe4 {[%clk 0:01:29]} 27. dxe4 {[%clk 0:01:52]}  Rf8 {[%clk 0:01:30]} 28. Ra2 {[%clk 0:01:51]}  Nf6 {[%clk 0:01:25]} 29. Rf2 {[%clk 0:01:44]}  Nxd5 {[%clk 0:01:22]} 30. Rxf8+ {[%clk 0:01:41]}  Rxf8 {[%clk 0:01:20]} 31. cxd5 {[%clk 0:01:42]}  Bb5 {[%clk 0:01:19]} 32. Nc4 {[%clk 0:01:42]}  Rf6 {[%clk 0:01:16]} 33. Rf1 {[%clk 0:01:35]}  Rxf1 {[%clk 0:01:13]} 34. Kxf1 {[%clk 0:01:36]}  Kf7 {[%clk 0:01:09]} 35. Kf2 {[%clk 0:01:36]}  Bxc4 {[%clk 0:00:59]} 36. bxc4 {[%clk 0:01:36]}  Kg6 {[%clk 0:01:00]} 37. Kf3 {[%clk 0:01:33]}  Bf6 {[%clk 0:00:59]} 38. Bd2 {[%clk 0:01:32]}  Bd8 {[%clk 0:00:58]} 39. g4 {[%clk 0:01:27]}  h5 {[%clk 0:00:22]} 40. Be1 {[%clk 0:01:22]}  Be7 {[%clk 0:00:21]} 41. Bd2 {[%clk 0:01:16]}  Bd8 {[%clk 0:00:21]} 42. Be1 {[%clk 0:00:35]}  Bf6 {[%clk 0:00:18]} 43. Bd2 {[%clk 0:00:35]}  Bh4 {[%clk 0:00:18]} 44. Bc3 {[%clk 0:00:32]}  Bg5 {[%clk 0:00:18]} 45. Be1 {[%clk 0:00:32]}  Bd8 {[%clk 0:00:14]} 46. Bc3 {[%clk 0:00:31]}  Bg5 {[%clk 0:00:13]} 47. Be1 {[%clk 0:00:31]}  Bd8 {[%clk 0:00:14]} 48. Bc3 {[%clk 0:00:31]}  Bg5 {[%clk 0:00:14]} 1/2-1/2


[Site "https://www.chess.com"]

[Event "Titled Tuesday Blitz October 11 Late 2022"]
[White "Korchmar, Vasiliy"]
[Black "Girsh, Daniel"]
[WhiteFideId "24131750"]
[BlackFideId "30949190"]
[WhiteElo "2627"]
[BlackElo "2458"]
[Result "1-0"]
[Round "08"]
[TimeControl "180+1"]
[Date "2022.10.12"]
[WhiteClock "0:01:32"]
[BlackClock "0:02:05"]

1. e4 {[%clk 0:03:00]}  c5 {[%clk 0:02:59]} 2. Nf3 {[%clk 0:03:00]}  d6 {[%clk 0:03:00]} 3. d4 {[%clk 0:03:00]}  cxd4 {[%clk 0:03:01]} 4. Nxd4 {[%clk 0:03:01]}  Nf6 {[%clk 0:03:01]} 5. Nc3 {[%clk 0:03:01]}  a6 {[%clk 0:03:02]} 6. Be2 {[%clk 0:02:59]}  e5 {[%clk 0:03:02]} 7. Nb3 {[%clk 0:03:00]}  Be7 {[%clk 0:03:03]} 8. O-O {[%clk 0:02:58]}  O-O {[%clk 0:03:03]} 9. Be3 {[%clk 0:02:56]}  Be6 {[%clk 0:03:04]} 10. Nd5 {[%clk 0:02:56]}  Bxd5 {[%clk 0:02:53]} 11. exd5 {[%clk 0:02:55]}  Nbd7 {[%clk 0:02:50]} 12. Qd2 {[%clk 0:02:19]}  Ne4 {[%clk 0:02:48]} 13. Qd3 {[%clk 0:02:13]}  f5 {[%clk 0:02:48]} 14. f3 {[%clk 0:02:10]}  Nec5 {[%clk 0:02:45]} 15. Nxc5 {[%clk 0:02:09]}  Nxc5 {[%clk 0:02:45]} 16. Bxc5 {[%clk 0:02:06]}  dxc5 {[%clk 0:02:45]} 17. c4 {[%clk 0:02:07]}  Bd6 {[%clk 0:02:41]} 18. Qc2 {[%clk 0:01:57]}  Qh4 {[%clk 0:02:40]} 19. g3 {[%clk 0:01:54]}  Qh6 {[%clk 0:02:31]} 20. Bd3 {[%clk 0:01:52]}  g6 {[%clk 0:02:19]} 21. Rae1 {[%clk 0:01:51]}  Rae8 {[%clk 0:02:19]} 22. Qb3 {[%clk 0:01:47]}  Re7 {[%clk 0:02:19]} 23. Qb6 {[%clk 0:01:46]}  g5 {[%clk 0:02:11]} 24. b4 {[%clk 0:01:42]}  Rc8 {[%clk 0:02:07]} 25. Bxf5 {[%clk 0:01:35]}  Rcc7 {[%clk 0:02:06]} 26. Be6+ {[%clk 0:01:31]}  Rxe6 {[%clk 0:02:06]} 27. dxe6 {[%clk 0:01:32]}  Qxe6 {[%clk 0:02:05]} 28. Rd1 {[%clk 0:01:32]} 1-0


[Site "https://www.chess.com"]